[Event "44th Chess Olympiad Women 2022"]
[Site "Chennai"]
[Date "2022.07.30"]
[Round "2.41"]
[White "Badenhorst, Chloe"]
[Black "Msukwa, Tupokiwe"]
[Result "0-1"]
[ECO "B24"]
[WhiteElo "1703"]
[BlackElo "1369"]
[Annotator "NA RC COMBH"]
[PlyCount "128"]
[EventDate "2022.07.29"]
[EventType "team-tourn"]
[EventCountry "IND"]
[SourceTitle "playchess.com"]
[Source "ChessBase"]
[SourceQuality "1"]
[WhiteTeam "South Africa"]
[BlackTeam "MAW"]
[WhiteTeamCountry "RSA"]
[TimeControl "40/5400+30:1800+30"]

1. e4 {[%emt 0:00:02]} c5 {[%emt 0:00:04]} 2. Nc3 {[%emt 0:00:05]} d6 {[%emt 0:00:07]} 3. g3 {[%emt 0:00:05]} Nf6 {[%emt 0:02:20]} 4. Bg2 {[%emt 0:00:58]} Nc6 {[%emt 0:00:29]} 5. d3 {[%emt 0:00:35]} Bg4 {[%emt 0:00:46]} 6. Nge2 {[%emt 0:05:06]} e5 {[%emt 0:02:49]} 7. h3 {[%emt 0:00:42]} Be6 {[%emt 0:00:05]} 8. O-O {[%emt 0:00:48]} Qd7 {[%emt 0:01:16]} 9. Kh2 {[%emt 0:00:49]} Be7 {[%emt 0:05:59]} 10. f4 {[%emt 0:00:00]} g6 {[%emt 0:18:12]} 11. Nd5 {[%emt 0:03:01]} h5 {[%emt 0:04:20]} 12. fxe5 {[%emt 0:05:48]} Nh7 {[%emt 0:11:03]} 13. Nxe7 {[%emt 0:06:27]} Qxe7 {[%emt 0:00:28]} 14. exd6 {[%emt 0:00:24]} Qxd6 {[%emt 0:01:24]} 15. Bf4 {[%emt 0:00:26]} Qd7 {[%emt 0:01:08]} 16. Nc3 {[%emt 0:00:21]} O-O {[%emt 0:00:21]} 17. Nd5 {[%emt 0:07:08]} Rac8 {[%emt 0:05:49]} 18. Bh6 {[%emt 0:10:19]} Rfd8 {[%emt 0:05:25]} 19. Nf4 {[%emt 0:05:43]} Ne5 {[%emt 0:07:19]} 20. Qd2 {[%emt 0:06:07]} f6 {[%emt 0:17:21]} 21. Nxe6 {[%emt 0:01:56]} Qxe6 {[%emt 0:00:11]} 22. Bf4 {[%emt 0:01:39]} Nf8 {[%emt 0:06:06]} 23. Bxe5 {[%emt 0:06:31]} Qxe5 {[%emt 0:00:43]} 24. Qa5 {[%emt 0:09:04]} Ne6 {[%emt 0:05:07]} 25. Qxa7 {[%emt 0:08:55]} h4 {[%emt 0:00:10]} 26. Qxb7 {[%emt 0:12:05]} Qxg3+ {[%emt 0:00:06]} 27. Kh1 {[%emt 0:00:20]} Nf4 {[%emt 0:01:11]} 28. Rxf4 {[%emt 0:00:38]} Qxf4 {[%emt 0:00:03]} 29. Qb3+ {[%emt 0:01:03]} Kg7 {[%emt 0:00:21]} 30. Re1 {[%emt 0:01:44]} Qg3 {[%emt 0:00:59]} 31. Qc3 {[%emt 0:01:34]} Qe5 {[%emt 0:01:17]} 32. Qxe5 {[%emt 0:01:43]} fxe5 {[%emt 0:00:04]} 33. b3 {[%emt 0:01:00]} Rf8 {[%emt 0:00:14]} 34. Kg1 {[%emt 0:00:55]} Ra8 {[%emt 0:00:50]} 35. a4 {[%emt 0:00:09]} Rf6 {[%emt 0:00:11]} 36. Re2 {[%emt 0:01:56]} Kf7 {[%emt 0:01:25]} 37. Rf2 {[%emt 0:00:28]} Ke6 {[%emt 0:02:11]} 38. Rxf6+ {[%emt 0:00:31]} Kxf6 {[%emt 0:00:28]} 39. Kf2 {[%emt 0:00:06]} Rb8 {[%emt 0:00:23]} 40. Ke3 {[%emt 0:00:56]} Rb6 {[%emt 0:00:13]} 41. Bf3 {[%emt 0:30:28]} Rb8 {[%emt 0:30:24]} 42. Bg4 {[%emt 0:00:29]} Rd8 {[%emt 0:01:12]} 43. Kd2 {[%emt 0:02:24]} Ke7 {[%emt 0:00:06]} 44. Kc3 {[%emt 0:00:00]} Kd6 {[%emt 0:00:00]} 45. Kc4 {[%emt 0:00:00]} Rf8 {[%emt 0:00:00]} 46. c3 {[%emt 0:00:00]} Rb8 {[%emt 0:00:00]} 47. b4 {[%emt 0:00:00]} cxb4 {[%emt 0:00:00]} 48. cxb4 {[%emt 0:00:00]} g5 {[%emt 0:00:00]} 49. b5 {[%emt 0:00:00]} Ra8 {[%emt 0:00:00]} 50. Kb4 {[%emt 0:00:00]} Kc7 {[%emt 0:00:00]} 51. a5 {[%emt 0:00:00]} Rd8 {[%emt 0:00:00]} 52. Be2 {[%emt 0:00:00]} Rd4+ {[%emt 0:00:00]} 53. Kc5 {[%emt 0:00:00]} Ra4 {[%emt 0:00:00]} 54. a6 {[%emt 0:00:00]} Ra2 {[%emt 0:00:00]} 55. b6+ {[%emt 0:00:00]} Kb8 {[%emt 0:00:00]} 56. a7+ {[%emt 0:00:00]} Kb7 {[%emt 0:00:00]} 57. Bd1 {[%emt 0:00:00]} Ra3 {[%emt 0:01:40]} 58. Kb4 {[%emt 0:05:06]} Rxd3 {[%emt 0:00:15]} 59. Bb3 {[%emt 0:00:17]} Rxb3+ {[%emt 0:00:26]} 60. Kxb3 {[%emt 0:00:20]} g4 {[%emt 0:00:03]} 61. hxg4 {[%emt 0:02:09]} h3 {[%emt 0:00:02]} 62. g5 {[%emt 0:00:14]} h2 {[%emt 0:00:02]} 63. g6 {[%emt 0:00:09]} h1=Q {[%emt 0:00:16]} 64. g7 {[%emt 0:02:02]} Qh7 {[%emt 0:00:04]} 0-1

[Event "44th Chess Olympiad Women 2022"]
[Site "Chennai"]
[Date "2022.07.30"]
[Round "2.41"]
[White "Kapalamula Martha"]
[Black "Bouah, Denise"]
[Result "0-1"]
[ECO "B51"]
[WhiteElo "1237"]
[BlackElo "1736"]
[Annotator "NA RC COMBH"]
[PlyCount "110"]
[EventDate "2022.07.29"]
[EventType "team-tourn"]
[EventCountry "IND"]
[SourceTitle "playchess.com"]
[Source "ChessBase"]
[SourceQuality "1"]
[WhiteTeam "MAW"]
[BlackTeam "South Africa"]
[BlackTeamCountry "RSA"]
[TimeControl "40/5400+30:1800+30"]

1. e4 {[%emt 0:00:04]} c5 {[%emt 0:00:06]} 2. Nf3 {[%emt 0:01:17]} d6 {[%emt 0:00:06]} 3. Nc3 {[%emt 0:00:28]} Nc6 {[%emt 0:00:32]} 4. Bb5 {[%emt 0:00:56]} Bd7 {[%emt 0:00:28]} 5. Bxc6 {[%emt 0:00:40]} Bxc6 {[%emt 0:00:50]} 6. d3 {[%emt 0:01:52]} Nf6 {[%emt 0:00:44]} 7. O-O {[%emt 0:02:12]} e6 {[%emt 0:06:03]} 8. Re1 {[%emt 0:02:20]} e5 {[%emt 0:14:20]} 9. h3 {[%emt 0:06:59]} Be7 {[%emt 0:00:57]} 10. Ne2 {[%emt 0:05:11]} b5 {[%emt 0:02:37]} 11. b3 {[%emt 0:00:53]} b4 {[%emt 0:05:09]} 12. Ng3 {[%emt 0:01:56]} g6 {[%emt 0:11:05]} 13. Bh6 {[%emt 0:05:40]} Bf8 {[%emt 0:02:53]} 14. Bxf8 {[%emt 0:03:39]} Kxf8 {[%emt 0:00:10]} 15. Qd2 {[%emt 0:00:43]} Kg7 {[%emt 0:02:49]} 16. Qg5 {[%emt 0:00:49]} Bd7 {[%emt 0:01:52]} 17. Nh4 {[%emt 0:02:04]} Kf8 {[%emt 0:05:11]} 18. Qh6+ {[%emt 0:10:15]} Ke7 {[%emt 0:02:13]} 19. Qe3 {[%emt 0:04:01]} Ne8 {[%emt 0:11:33]} 20. f4 {[%emt 0:01:05]} Kf8 {[%emt 0:03:07]} 21. fxe5 {[%emt 0:00:47]} Qxh4 {[%emt 0:00:28]} 22. Rf1 {[%emt 0:02:44]} Qe7 {[%emt 0:05:18]} 23. Rf3 {[%emt 0:06:07]} dxe5 {[%emt 0:03:45]} 24. Raf1 {[%emt 0:01:55]} f6 {[%emt 0:01:51]} 25. Qh6+ {[%emt 0:02:05]} Qg7 {[%emt 0:01:07]} 26. Qg5 {[%emt 0:02:15]} Ke7 {[%emt 0:01:22]} 27. Qe3 {[%emt 0:03:26]} Rc8 {[%emt 0:00:07]} 28. a3 {[%emt 0:01:05]} a5 {[%emt 0:00:50]} 29. axb4 {[%emt 0:02:22]} axb4 {[%emt 0:00:17]} 30. Ra1 {[%emt 0:00:37]} Nd6 {[%emt 0:00:15]} 31. Raf1 {[%emt 0:05:14]} Rhf8 {[%emt 0:00:22]} 32. Qd2 {[%emt 0:02:39]} Nb5 {[%emt 0:00:16]} 33. Ne2 {[%emt 0:01:04]} Qg8 {[%emt 0:01:41]} 34. g4 {[%emt 0:04:02]} Rc6 {[%emt 0:01:14]} 35. Qh6 {[%emt 0:02:48]} Nd4 {[%emt 0:00:26]} 36. Nxd4 {[%emt 0:00:38]} cxd4 {[%emt 0:00:11]} 37. Qd2 {[%emt 0:02:23]} Rb6 {[%emt 0:00:53]} 38. Ra1 {[%emt 0:00:47]} Ra8 {[%emt 0:01:22]} 39. Raf1 {[%emt 0:00:30]} Ra2 {[%emt 0:01:50]} 40. g5 {[%emt 0:03:02]} f5 {[%emt 0:01:03]} 41. exf5 {[%emt 0:32:31]} Bxf5 {[%emt 0:30:52]} 42. Qh2 {[%emt 0:01:00]} Qd5 {[%emt 0:01:27]} 43. R3f2 {[%emt 0:05:25]} Qc5 {[%emt 0:05:48]} 44. Re2 {[%emt 0:01:00]} Re6 {[%emt 0:03:36]} 45. Qg2 {[%emt 0:01:19]} Kd6 {[%emt 0:00:00]} 46. Rfe1 {[%emt 0:00:00]} Re7 {[%emt 0:00:00]} 47. Qh2 {[%emt 0:00:00]} Ra8 {[%emt 0:00:00]} 48. Qg2 {[%emt 0:00:00]} Rae8 {[%emt 0:00:00]} 49. Ra1 {[%emt 0:00:00]} e4 {[%emt 0:00:00]} 50. Qg3+ {[%emt 0:00:00]} Kc6 {[%emt 0:00:00]} 51. Ra6+ {[%emt 0:01:03]} Kb7 {[%emt 0:00:00]} 52. Rf6 {[%emt 0:01:18]} exd3 {[%emt 0:00:00]} 53. Rxe7+ {[%emt 0:00:52]} Rxe7 {[%emt 0:00:00]} 54. Rf8 {[%emt 0:01:24]} Qc7 {[%emt 0:00:00]} 55. Qg2+ {[%emt 0:00:54]} Be4 {[%emt 0:00:00]} 0-1

[Event "44th Chess Olympiad Women 2022"]
[Site "Chennai"]
[Date "2022.07.30"]
[Round "2.42"]
[White "A-ALI, Sali Abbas Abdulzahr"]
[Black "Sara, Gadalla Karar"]
[Result "1-0"]
[ECO "B38"]
[WhiteElo "1864"]
[BlackElo "1433"]
[Annotator "NA RC COMBH"]
[PlyCount "63"]
[EventDate "2022.07.29"]
[EventType "team-tourn"]
[EventCountry "IND"]
[SourceTitle "playchess.com"]
[Source "ChessBase"]
[SourceQuality "1"]
[WhiteTeam "Iraq"]
[BlackTeam "Sudan"]
[WhiteTeamCountry "IRQ"]
[BlackTeamCountry "SUD"]
[TimeControl "40/5400+30:1800+30"]

1. e4 {[%emt 0:00:03]} c5 {[%emt 0:00:45]} 2. Nf3 {[%emt 0:00:08]} Nc6 {[%emt 0:00:14]} 3. d4 {[%emt 0:00:11]} cxd4 {[%emt 0:00:10]} 4. Nxd4 {[%emt 0:00:06]} g6 {[%emt 0:00:20]} 5. c4 {[%emt 0:01:04]} Bg7 {[%emt 0:00:49]} 6. Be3 {[%emt 0:02:36]} Qb6 {[%emt 0:03:57]} 7. Nb3 {[%emt 0:03:32]} Qc7 {[%emt 0:10:11]} 8. Nc3 {[%emt 0:02:08]} Bxc3+ {[%emt 0:03:05]} 9. bxc3 {[%emt 0:00:06]} Nf6 {[%emt 0:04:09]} 10. f3 {[%emt 0:02:19]} O-O {[%emt 0:11:52]} 11. Be2 {[%emt 0:00:31]} d6 {[%emt 0:02:28]} 12. Nd4 {[%emt 0:02:22]} Ne5 {[%emt 0:05:42]} 13. Qb3 {[%emt 0:03:44]} b6 {[%emt 0:05:04]} 14. h3 {[%emt 0:04:29]} Bb7 {[%emt 0:09:56]} 15. Nb5 {[%emt 0:01:57]} Qc6 {[%emt 0:00:52]} 16. Bd4 {[%emt 0:00:42]} Nfd7 {[%emt 0:04:35]} 17. f4 {[%emt 0:06:02]} Qxe4 {[%emt 0:07:05]} 18. fxe5 {[%emt 0:00:58]} Qxg2 {[%emt 0:01:00]} 19. Rg1 {[%emt 0:00:29]} Qh2 {[%emt 0:09:00]} 20. exd6 {[%emt 0:01:02]} exd6 {[%emt 0:00:48]} 21. Nc7 {[%emt 0:02:08]} Rac8 {[%emt 0:04:17]} 22. Nd5 {[%emt 0:00:09]} Rfe8 {[%emt 0:01:16]} 23. Bf2 {[%emt 0:04:48]} Qe5 {[%emt 0:02:48]} 24. Ne3 {[%emt 0:02:18]} Nc5 {[%emt 0:01:52]} 25. Qc2 {[%emt 0:02:49]} Ne4 {[%emt 0:03:32]} 26. Ng4 {[%emt 0:01:22]} Qxc3+ {[%emt 0:00:35]} 27. Qxc3 {[%emt 0:00:54]} Nxc3 {[%emt 0:00:03]} 28. Nf6+ {[%emt 0:04:01]} Kg7 {[%emt 0:06:37]} 29. Nxe8+ {[%emt 0:00:09]} Rxe8 {[%emt 0:00:05]} 30. Bd4+ {[%emt 0:00:03]} f6 {[%emt 0:00:09]} 31. Bxc3 {[%emt 0:00:25]} Bf3 {[%emt 0:00:46]} 32. Kf2 {[%emt 0:00:08]} 1-0

[Event "44th Chess Olympiad Women 2022"]
[Site "Chennai"]
[Date "2022.07.30"]
[Round "2.42"]
[White "Al-Fayyadh, Yamama Asif Abdula"]
[Black "Rayan Sedee Mohamed"]
[Result "1-0"]
[ECO "B34"]
[WhiteElo "1666"]
[BlackElo "1168"]
[Annotator "NA COMBH"]
[PlyCount "61"]
[EventDate "2022.07.29"]
[EventType "team-tourn"]
[EventCountry "IND"]
[SourceTitle "playchess.com"]
[Source "ChessBase"]
[SourceQuality "1"]
[WhiteTeam "Iraq"]
[BlackTeam "Sudan"]
[WhiteTeamCountry "IRQ"]
[BlackTeamCountry "SUD"]
[TimeControl "40/5400+30:1800+30"]

1. e4 {[%emt 0:00:03]} c5 {[%emt 0:00:19]} 2. Nf3 {[%emt 0:00:12]} Nc6 {[%emt 0:00:57]} 3. d4 {[%emt 0:00:19]} cxd4 {[%emt 0:01:04]} 4. Nxd4 {[%emt 0:00:09]} Nf6 {[%emt 0:01:27]} 5. Nc3 {[%emt 0:00:14]} g6 {[%emt 0:01:35]} 6. Be3 {[%emt 0:05:40]} Bg7 {[%emt 0:00:57]} 7. Be2 {[%emt 0:00:46]} d6 {[%emt 0:07:00]} 8. O-O {[%emt 0:05:19]} O-O {[%emt 0:00:35]} 9. f3 {[%emt 0:01:58]} d5 {[%emt 0:12:32]} 10. Nxc6 {[%emt 0:14:21]} bxc6 {[%emt 0:01:33]} 11. e5 {[%emt 0:01:31]} Nd7 {[%emt 0:06:46]} 12. f4 {[%emt 0:01:28]} e6 {[%emt 0:05:24]} 13. Rf3 {[%emt 0:07:45]} f6 {[%emt 0:12:51]} 14. exf6 {[%emt 0:06:24]} Qxf6 {[%emt 0:03:48]} 15. Bf2 {[%emt 0:03:38]} Bb7 {[%emt 0:05:35]} 16. g3 {[%emt 0:06:13]} a6 {[%emt 0:06:11]} 17. Na4 {[%emt 0:06:08]} d4 {[%emt 0:07:17]} 18. Rb3 {[%emt 0:11:41]} Rab8 {[%emt 0:02:03]} 19. c3 {[%emt 0:03:40]} c5 {[%emt 0:02:51]} 20. Bf3 {[%emt 0:03:13]} Bxf3 {[%emt 0:04:38]} 21. Qxf3 {[%emt 0:00:06]} Ne5 {[%emt 0:04:04]} 22. Qe2 {[%emt 0:01:11]} Nd7 {[%emt 0:02:29]} 23. Qxa6 {[%emt 0:02:22]} Ra8 {[%emt 0:02:51]} 24. Qb5 {[%emt 0:03:37]} Rfd8 {[%emt 0:01:19]} 25. Nxc5 {[%emt 0:01:52]} Rab8 {[%emt 0:01:30]} 26. Nxd7 {[%emt 0:01:38]} Rxb5 {[%emt 0:03:20]} 27. Nxf6+ {[%emt 0:00:08]} Bxf6 {[%emt 0:00:32]} 28. Rxb5 {[%emt 0:00:06]} d3 {[%emt 0:00:17]} 29. Rd1 {[%emt 0:01:06]} e5 {[%emt 0:00:59]} 30. fxe5 {[%emt 0:00:10]} Bxe5 {[%emt 0:00:14]} 31. Rxe5 {[%emt 0:00:08]} 1-0

[Event "44th Chess Olympiad Women 2022"]
[Site "Chennai"]
[Date "2022.07.30"]
[Round "2.42"]
[White "Ibtihal Mohammed"]
[Black "Al-Fayyadh, Zainab Asif Abdulah"]
[Result "0-1"]
[ECO "C44"]
[WhiteElo "1445"]
[BlackElo "1749"]
[Annotator "NA RC COMBH"]
[PlyCount "62"]
[EventDate "2022.07.29"]
[EventType "team-tourn"]
[EventCountry "IND"]
[SourceTitle "playchess.com"]
[Source "ChessBase"]
[SourceQuality "1"]
[WhiteTeam "Sudan"]
[BlackTeam "Iraq"]
[WhiteTeamCountry "SUD"]
[BlackTeamCountry "IRQ"]
[TimeControl "40/5400+30:1800+30"]

1. e4 {[%emt 0:00:02]} e5 {[%emt 0:00:08]} 2. Nf3 {[%emt 0:00:04]} Nc6 {[%emt 0:00:06]} 3. d3 {[%emt 0:00:19]} Bc5 {[%emt 0:00:30]} 4. g3 {[%emt 0:00:40]} Nf6 {[%emt 0:01:13]} 5. Bg2 {[%emt 0:00:38]} d6 {[%emt 0:00:18]} 6. O-O {[%emt 0:02:41]} Be6 {[%emt 0:00:56]} 7. Qe2 {[%emt 0:01:08]} Qd7 {[%emt 0:01:58]} 8. Be3 {[%emt 0:07:09]} Bb6 {[%emt 0:04:48]} 9. Ng5 {[%emt 0:03:18]} Nd4 {[%emt 0:03:35]} 10. Qd2 {[%emt 0:07:13]} O-O {[%emt 0:03:06]} 11. Nxe6 {[%emt 0:04:44]} fxe6 {[%emt 0:00:42]} 12. c3 {[%emt 0:02:55]} Nc6 {[%emt 0:01:02]} 13. Bxb6 {[%emt 0:02:00]} axb6 {[%emt 0:00:07]} 14. Na3 {[%emt 0:09:39]} Qf7 {[%emt 0:01:56]} 15. Nc2 {[%emt 0:12:43]} Qg6 {[%emt 0:00:34]} 16. f3 {[%emt 0:04:13]} Rf7 {[%emt 0:05:22]} 17. Rf2 {[%emt 0:02:30]} h5 {[%emt 0:03:09]} 18. Kf1 {[%emt 0:06:27]} Raf8 {[%emt 0:00:40]} 19. Ne3 {[%emt 0:07:27]} Ng4 {[%emt 0:06:14]} 20. Nxg4 {[%emt 0:01:35]} hxg4 {[%emt 0:00:07]} 21. f4 {[%emt 0:01:10]} exf4 {[%emt 0:00:31]} 22. gxf4 {[%emt 0:00:09]} Qh6 {[%emt 0:02:03]} 23. Kg1 {[%emt 0:10:24]} Rxf4 {[%emt 0:02:40]} 24. Raf1 {[%emt 0:01:04]} Rxf2 {[%emt 0:00:51]} 25. Rxf2 {[%emt 0:00:07]} Rxf2 {[%emt 0:00:12]} 26. Qxf2 {[%emt 0:00:17]} Qc1+ {[%emt 0:02:24]} 27. Bf1 {[%emt 0:00:08]} Ne5 {[%emt 0:00:30]} 28. Qe2 {[%emt 0:10:43]} Nf3+ {[%emt 0:01:01]} 29. Kg2 {[%emt 0:00:54]} Qf4 {[%emt 0:00:35]} 30. Kh1 {[%emt 0:01:54]} Nxh2 {[%emt 0:04:17]} 31. Bg2 {[%emt 0:01:07]} g3 {[%emt 0:00:43]} 0-1

[Event "44th Chess Olympiad Women 2022"]
[Site "Chennai"]
[Date "2022.07.30"]
[Round "2.42"]
[White "Marwa, Jadalla"]
[Black "Tiba, Mahdi Attiyah"]
[Result "0-1"]
[ECO "D02"]
[WhiteElo "1316"]
[BlackElo "1759"]
[Annotator "NA COMBH"]
[PlyCount "62"]
[EventDate "2022.07.29"]
[EventType "team-tourn"]
[EventCountry "IND"]
[SourceTitle "playchess.com"]
[Source "ChessBase"]
[SourceQuality "1"]
[WhiteTeam "Sudan"]
[BlackTeam "Iraq"]
[WhiteTeamCountry "SUD"]
[BlackTeamCountry "IRQ"]
[TimeControl "40/5400+30:1800+30"]

1. d4 {[%emt 0:00:03]} d5 {[%emt 0:00:07]} 2. Bf4 {[%emt 0:00:01]} Nf6 {[%emt 0:00:10]} 3. e3 {[%emt 0:00:07]} c6 {[%emt 0:00:12]} 4. Nd2 {[%emt 0:01:42]} Bf5 {[%emt 0:00:45]} 5. c3 {[%emt 0:03:41]} e6 {[%emt 0:00:05]} 6. Be2 {[%emt 0:04:47]} Nbd7 {[%emt 0:02:54]} 7. Ngf3 {[%emt 0:01:32]} h6 {[%emt 0:00:41]} 8. Ne5 {[%emt 0:05:36]} Nxe5 {[%emt 0:03:35]} 9. Bxe5 {[%emt 0:01:37]} Bd6 {[%emt 0:01:38]} 10. Bg3 {[%emt 0:08:04]} Ne4 {[%emt 0:07:27]} 11. Nxe4 {[%emt 0:08:11]} Bxe4 {[%emt 0:00:31]} 12. Bf3 {[%emt 0:00:20]} Bg6 {[%emt 0:00:45]} 13. Be2 {[%emt 0:04:37]} Qc7 {[%emt 0:09:54]} 14. Bd3 {[%emt 0:03:05]} Bxd3 {[%emt 0:00:28]} 15. Qxd3 {[%emt 0:00:13]} O-O {[%emt 0:01:00]} 16. Bxd6 {[%emt 0:01:55]} Qxd6 {[%emt 0:00:02]} 17. h4 {[%emt 0:00:36]} e5 {[%emt 0:03:26]} 18. Kd2 {[%emt 0:03:02]} e4 {[%emt 0:15:02]} 19. Qe2 {[%emt 0:00:08]} f5 {[%emt 0:01:07]} 20. f4 {[%emt 0:05:20]} exf3 {[%emt 0:01:00]} 21. gxf3 {[%emt 0:21:36]} Rae8 {[%emt 0:11:10]} 22. Rae1 {[%emt 0:00:25]} c5 {[%emt 0:10:53]} 23. Qg2 {[%emt 0:09:17]} cxd4 {[%emt 0:03:32]} 24. f4 {[%emt 0:11:27]} dxe3+ {[%emt 0:03:13]} 25. Rxe3 {[%emt 0:00:55]} Rxe3 {[%emt 0:08:55]} 26. Kxe3 {[%emt 0:00:18]} Re8+ {[%emt 0:00:29]} 27. Kf3 {[%emt 0:02:46]} Re4 {[%emt 0:00:59]} 28. Qg3 {[%emt 0:00:33]} Qc5 {[%emt 0:01:21]} 29. Qg1 {[%emt 0:02:25]} Qc4 {[%emt 0:00:57]} 30. Qf2 {[%emt 0:00:34]} Rxf4+ {[%emt 0:00:21]} 31. Kg2 {[%emt 0:00:00]} Rxf2+ {[%emt 0:00:18]} 0-1

[Event "44th Chess Olympiad Women 2022"]
[Site "Chennai"]
[Date "2022.07.30"]
[Round "2.43"]
[White "Mahmoud, Roula"]
[Black "Beukes Jamie-Nicole"]
[Result "1-0"]
[ECO "B44"]
[WhiteElo "1765"]
[BlackElo "1231"]
[Annotator "NA RC COMBH"]
[PlyCount "106"]
[EventDate "2022.07.29"]
[EventType "team-tourn"]
[EventCountry "IND"]
[SourceTitle "playchess.com"]
[Source "ChessBase"]
[SourceQuality "1"]
[WhiteTeam "Syria"]
[BlackTeam "Namibia"]
[WhiteTeamCountry "SYR"]
[BlackTeamCountry "NAM"]
[TimeControl "40/5400+30:1800+30"]

1. e4 {[%emt 0:00:05]} c5 {[%emt 0:00:16]} 2. Nf3 {[%emt 0:00:07]} e6 {[%emt 0:00:11]} 3. d4 {[%emt 0:00:12]} cxd4 {[%emt 0:00:15]} 4. Nxd4 {[%emt 0:00:07]} Nc6 {[%emt 0:00:10]} 5. c3 {[%emt 0:02:51]} Qc7 {[%emt 0:03:52]} 6. Be3 {[%emt 0:01:57]} a6 {[%emt 0:01:07]} 7. Nd2 {[%emt 0:02:47]} Nf6 {[%emt 0:00:53]} 8. f4 {[%emt 0:03:10]} d6 {[%emt 0:07:25]} 9. Be2 {[%emt 0:01:16]} Be7 {[%emt 0:02:15]} 10. O-O {[%emt 0:00:10]} O-O {[%emt 0:04:59]} 11. Bf3 {[%emt 0:02:32]} Re8 {[%emt 0:11:41]} 12. a4 {[%emt 0:03:29]} Bd7 {[%emt 0:06:12]} 13. g4 {[%emt 0:08:01]} Bc8 {[%emt 0:12:31]} 14. Qe2 {[%emt 0:07:21]} d5 {[%emt 0:04:59]} 15. e5 {[%emt 0:07:12]} Nd7 {[%emt 0:03:18]} 16. Kh1 {[%emt 0:06:54]} Nf8 {[%emt 0:08:26]} 17. Bg2 {[%emt 0:08:13]} f6 {[%emt 0:08:41]} 18. exf6 {[%emt 0:13:22]} Bxf6 {[%emt 0:02:14]} 19. f5 {[%emt 0:05:26]} Qd6 {[%emt 0:08:28]} 20. fxe6 {[%emt 0:06:13]} Nxd4 {[%emt 0:04:23]} 21. Bxd4 {[%emt 0:01:24]} Bxd4 {[%emt 0:02:01]} 22. cxd4 {[%emt 0:00:10]} Rxe6 {[%emt 0:00:46]} 23. Qf3 {[%emt 0:01:29]} Rf6 {[%emt 0:04:20]} 24. Qxd5+ {[%emt 0:00:45]} Qxd5 {[%emt 0:00:08]} 25. Bxd5+ {[%emt 0:00:04]} Kh8 {[%emt 0:01:23]} 26. g5 {[%emt 0:01:06]} Rxf1+ {[%emt 0:01:12]} 27. Rxf1 {[%emt 0:00:03]} Bh3 {[%emt 0:00:13]} 28. Rf3 {[%emt 0:01:04]} Rd8 {[%emt 0:00:41]} 29. Bxb7 {[%emt 0:00:31]} Bg4 {[%emt 0:00:34]} 30. Rf4 {[%emt 0:01:11]} Bd1 {[%emt 0:00:39]} 31. d5 {[%emt 0:01:49]} Ng6 {[%emt 0:00:37]} 32. Re4 {[%emt 0:02:56]} Bc2 {[%emt 0:00:29]} 33. Re6 {[%emt 0:01:14]} a5 {[%emt 0:01:02]} 34. Ra6 {[%emt 0:01:37]} Bxa4 {[%emt 0:00:25]} 35. Rxa5 {[%emt 0:00:02]} Bc2 {[%emt 0:00:30]} 36. d6 {[%emt 0:02:41]} Nf8 {[%emt 0:00:33]} 37. Rc5 {[%emt 0:00:31]} Ba4 {[%emt 0:00:24]} 38. Ne4 {[%emt 0:00:52]} Re8 {[%emt 0:00:37]} 39. Kg1 {[%emt 0:01:48]} Bd7 {[%emt 0:00:32]} 40. Rc7 {[%emt 0:01:28]} Bf5 {[%emt 0:00:18]} 41. Nc5 {[%emt 0:32:10]} Bh3 {[%emt 0:30:33]} 42. d7 {[%emt 0:02:42]} Rd8 {[%emt 0:00:36]} 43. Rc8 {[%emt 0:00:18]} Rxc8 {[%emt 0:00:36]} 44. dxc8=Q {[%emt 0:00:11]} Bxc8 {[%emt 0:00:08]} 45. Bxc8 {[%emt 0:00:07]} Ng6 {[%emt 0:00:21]} 46. b4 {[%emt 0:00:17]} Ne7 {[%emt 0:00:40]} 47. Bb7 {[%emt 0:00:18]} Kg8 {[%emt 0:00:14]} 48. b5 {[%emt 0:00:13]} Kf7 {[%emt 0:00:18]} 49. Be4 {[%emt 0:00:39]} Nc8 {[%emt 0:00:19]} 50. Kf2 {[%emt 0:00:26]} Nd6 {[%emt 0:00:10]} 51. b6 {[%emt 0:00:16]} Nxe4+ {[%emt 0:00:56]} 52. Nxe4 {[%emt 0:00:08]} Ke6 {[%emt 0:00:07]} 53. b7 {[%emt 0:00:10]} Kd5 {[%emt 0:00:26]} 1-0